bitfinex/quotes_BTCUSD_20241018
["timestamp","ask_amount","ask_price","bid_price","bid_amount"]
[1729251274134,0.61273671,67899.0,67898.0,0.001828]
[1729251274773,0.61473671,67899.0,67898.0,0.001828]
[1729251276483,0.61273671,67899.0,67898.0,0.001828]
[1729251277083,0.48790681,67899.0,67898.0,0.001828]
[1729251277287,0.61273671,67899.0,67898.0,0.001828]
[1729251277518,0.60273671,67899.0,67898.0,0.001828]
[1729251278383,0.61273671,67899.0,67898.0,0.001828]
[1729251279756,0.60273671,67899.0,67898.0,0.001828]
[1729251280691,0.61273671,67899.0,67898.0,0.001828]
[1729251281572,0.59336605,67899.0,67898.0,0.001828]
[1729251282038,0.60336605,67899.0,67898.0,0.001828]
[1729251283411,0.155277,67899.0,67898.0,0.001828]
[1729251288514,0.30423615,67899.0,67898.0,0.001828]
[1729251289446,0.41906605,67899.0,67898.0,0.001828]
[1729251296463,0.51306605,67899.0,67898.0,0.001828]
[1729251296680,0.59036605,67899.0,67898.0,0.001828]
[1729251298058,0.59236605,67899.0,67898.0,0.001828]
[1729251298731,0.7413252,67899.0,67898.0,0.001828]
[1729251299630,0.59236605,67899.0,67898.0,0.001828]
[1729251300078,0.60160308,67899.0,67898.0,0.001828]
[1729251301673,0.60660308,67899.0,67898.0,0.001828]
[1729251302120,0.49177318,67899.0,67898.0,0.001828]
[1729251302619,0.48977318,67899.0,67898.0,0.001828]
[1729251303334,0.60317343,67899.0,67898.0,0.001828]
[1729251304291,0.60117343,67899.0,67898.0,0.001828]
[1729251304533,0.48977318,67899.0,67898.0,0.001828]
[1729251304999,0.01,67894.0,67893.0,0.000828]
[1729251305248,0.63200695,67894.0,67893.0,0.000828]
[1729251305488,0.71690695,67894.0,67893.0,0.000828]
[1729251306446,0.8678661,67894.0,67893.0,0.000828]
[1729251306913,0.71690695,67894.0,67893.0,0.000828]
[1729251307415,0.72990695,67894.0,67893.0,0.001828]
[1729251307683,0.61307705,67894.0,67893.0,0.001828]
[1729251307924,0.72790695,67894.0,67893.0,0.001828]
[1729251308638,0.61307705,67894.0,67893.0,0.001828]
[1729251309353,0.62407705,67894.0,67893.0,0.002828]
[1729251310028,0.7730362,67894.0,67893.0,0.002828]
[1729251311289,0.8878661,67894.0,67893.0,0.002828]
[1729251318694,0.50924715,67894.0,67893.0,0.002828]
[1729251318937,0.62407705,67894.0,67893.0,0.002828]
[1729251319873,0.171288,67894.0,67893.0,0.002828]
[1729251320089,0.2861179,67894.0,67893.0,0.002828]
[1729251326849,0.43507705,67894.0,67893.0,0.002828]
[1729251327066,0.64360695,67894.0,67893.0,0.002828]
[1729251327279,0.72050695,67894.0,67893.0,0.002828]
[1729251329508,0.72250695,67894.0,67893.0,0.002828]
[1729251329724,0.60767705,67894.0,67893.0,0.002828]
[1729251330391,0.72250695,67894.0,67893.0,0.002828]
[1729251331509,0.83861751,67894.0,67893.0,0.002828]
[1729251331977,0.83661751,67894.0,67893.0,0.002828]
[1729251332203,0.72178761,67894.0,67893.0,0.002828]
[1729251332665,0.6053532,67894.0,67893.0,0.002828]
[1729251334934,0.7201831,67894.0,67893.0,0.002828]
[1729251338360,0.7221831,67894.0,67893.0,0.002828]
[1729251339255,0.7201831,67894.0,67893.0,0.002828]
[1729251340081,0.7221831,67894.0,67893.0,0.002828]
[1729251341497,0.6053532,67894.0,67893.0,0.002828]
[1729251341747,0.7201831,67894.0,67893.0,0.002828]
[1729251341974,0.6053532,67894.0,67893.0,0.002828]
[1729251342222,0.6073532,67894.0,67893.0,0.002828]
[1729251342436,0.6053532,67894.0,67893.0,0.002828]
[1729251343562,0.6070092,67894.0,67893.0,0.002828]
[1729251345621,0.6090092,67894.0,67893.0,0.002828]
[1729251346302,0.75796835,67894.0,67893.0,0.002828]
[1729251346524,0.147314,67882.0,67881.0,0.22075705]
[1729251346746,0.2621439,67882.0,67881.0,0.22075705]
[1729251346967,0.2621439,67882.0,67881.0,0.2311357]
[1729251347188,0.294638,67880.0,67876.0,0.04418406]
[1729251347419,0.2621549,67877.0,67876.0,0.04418406]
[1729251347645,0.2621549,67877.0,67873.0,0.18076812]
[1729251347646,0.5243098,67877.0,67873.0,0.0441919]
[1729251347870,0.147329,67875.0,67874.0,0.26494895]
[1729251348098,0.2621589,67875.0,67874.0,0.22075705]
[1729251348336,0.147331,67874.0,67873.0,0.0441919]
[1729251348613,0.147333,67873.0,67872.0,0.0441919]
[1729251348832,0.147336,67872.0,67871.0,0.0450199]
[1729251349054,0.2621659,67872.0,67871.0,0.0450199]
[1729251349505,0.2621659,67872.0,67871.0,0.06710409]
[1729251349736,0.2621659,67872.0,67871.0,0.000828]
[1729251349957,0.2621659,67872.0,67871.0,0.04499796]
[1729251350394,0.2621659,67872.0,67871.0,0.000828]
[1729251350613,0.3769958,67872.0,67871.0,0.04499369]
[1729251350834,0.2621659,67872.0,67871.0,0.04499369]
[1729251351086,0.2621659,67872.0,67871.0,0.000828]
[1729251351536,0.2671659,67872.0,67871.0,0.000828]
[1729251351953,0.2671659,67872.0,67871.0,0.0449874]
[1729251352171,0.2671659,67872.0,67871.0,0.04498784]
[1729251352408,0.2721659,67872.0,67871.0,0.000828]
[1729251352920,0.2721659,67872.0,67871.0,0.04498178]
[1729251353187,0.2721659,67872.0,67871.0,0.000828]
[1729251359084,0.2671659,67872.0,67871.0,0.000828]
[1729251359315,0.2651659,67872.0,67871.0,0.000828]
[1729251359530,0.2671659,67872.0,67871.0,0.000828]
[1729251359764,0.2641659,67872.0,67871.0,0.000828]
[1729251360231,0.2691659,67872.0,67871.0,0.000828]
[1729251360920,0.2671659,67872.0,67871.0,0.000828]
[1729251361142,0.2721659,67872.0,67871.0,0.00363253]
[1729251361367,0.2721659,67872.0,67871.0,0.000828]
[1729251361584,0.2721659,67872.0,67871.0,0.00363253]
[1729251361803,0.2721659,67872.0,67871.0,0.000828]
[1729251362029,0.2721659,67872.0,67871.0,0.00363253]
[1729251362256,0.2721659,67872.0,67871.0,0.000828]
[1729251362484,0.2721659,67872.0,67871.0,0.00363253]
[1729251364383,0.01,67872.0,67871.0,0.00363253]
[1729251364619,0.157336,67872.0,67871.0,0.00363253]
[1729251364837,0.157336,67872.0,67871.0,0.0477698]
[1729251365053,0.157336,67872.0,67871.0,0.00363253]
[1729251365282,0.152336,67872.0,67871.0,0.00363253]
[1729251365511,0.294663,67874.0,67872.0,0.1716]
[1729251365734,0.29463,67882.0,67872.0,0.1716]
[1729251365735,0.147314,67882.0,67876.0,0.076]
[1729251365963,0.049151,67888.0,67879.0,0.14041368]
[1729251366207,0.147318,67880.0,67879.0,0.0963]
[1729251368256,0.294628,67883.0,67879.0,0.10600133]
[1729251368475,0.147318,67881.0,67879.0,0.18452737]
[1729251368690,0.147318,67880.0,67879.0,0.18952737]
[1729251368921,0.147318,67880.0,67879.0,0.0963]
[1729251369166,0.147318,67880.0,67879.0,0.19422775]
[1729251370050,0.147318,67880.0,67879.0,0.0963]
[1729251370276,0.147318,67880.0,67879.0,0.16746501]
[1729251372840,0.147318,67880.0,67879.0,0.16746079]
[1729251375154,0.2621479,67880.0,67879.0,0.07116079]
[1729251375369,0.2621479,67880.0,67879.0,0.005]
[1729251376271,0.2621479,67880.0,67879.0,0.00773098]
[1729251379078,0.1148299,67880.0,67879.0,0.00773098]
[1729251379307,0.294624,67883.0,67879.0,0.00773098]
[1729251379558,0.147318,67881.0,67880.0,0.044104]
[1729251382315,0.148946,67893.0,67888.0,0.1419895]
[1729251382538,0.001656,67893.0,67888.0,0.14463776]
[1729251382757,0.147293,67892.0,67888.0,0.14463776]
[1729251382999,0.148947,67893.0,67889.0,0.0440895]
[1729251383216,0.147292,67892.0,67889.0,0.0440895]
[1729251383469,0.147295,67891.0,67890.0,0.00262988]
[1729251384703,0.2621249,67891.0,67890.0,0.00262988]
[1729251384960,0.294603,67888.0,67885.0,0.0440895]
[1729251385186,0.294603,67888.0,67882.0,0.04407691]
[1729251385187,0.1148299,67886.0,67882.0,0.04407691]
[1729251385410,0.147314,67882.0,67881.0,0.26483401]
[1729251385883,0.147314,67882.0,67881.0,0.04407696]
[1729251386131,0.147316,67881.0,67880.0,0.04407696]
[1729251386377,0.2621459,67881.0,67880.0,0.04407696]
[1729251387081,0.1148299,67881.0,67880.0,0.04407696]
[1729251388243,0.1148299,67881.0,67880.0,0.05174735]
[1729251388517,0.1148299,67881.0,67880.0,0.05474735]
[1729251391357,0.1148299,67884.0,67880.0,0.05746914]
[1729251392292,0.1148299,67884.0,67880.0,0.05446914]
[1729251392523,0.1148299,67884.0,67880.0,0.05746914]
[1729251393782,0.1148299,67881.0,67880.0,0.01339218]
[1729251394025,0.1148299,67881.0,67880.0,0.02309832]
[1729251394974,0.1148299,67881.0,67880.0,0.02009832]
[1729251395461,0.1148299,67881.0,67880.0,0.02309832]
[1729251396621,0.1148299,67881.0,67880.0,0.06717028]
[1729251398067,0.3399459,67881.0,67880.0,0.06717028]
[1729251398298,0.3399459,67881.0,67880.0,0.01339218]
[1729251398765,0.3399459,67881.0,67880.0,0.003]
[1729251400201,0.70093495,67881.0,67880.0,0.003]
[1729251400450,0.75868558,67881.0,67880.0,0.003]
[1729251400688,0.76780473,67881.0,67880.0,0.003]
[1729251400925,0.91428118,67881.0,67880.0,0.003]
[1729251401154,0.015,67880.0,67879.0,0.000828]
[1729251401439,0.48627715,67880.0,67879.0,0.000828]
[1729251401900,0.96906902,67880.0,67879.0,0.000828]
[1729251402135,0.97106902,67880.0,67879.0,0.000828]
[1729251402597,0.96906902,67880.0,67879.0,0.000828]
[1729251403285,0.98006902,67880.0,67879.0,0.000828]
[1729251404407,0.98006902,67880.0,67879.0,0.001828]
[1729251404408,0.50727715,67880.0,67879.0,0.001828]
[1729251404633,0.84110987,67880.0,67879.0,0.001828]
[1729251405851,0.335236,67872.0,67871.0,0.000828]
[1729251406087,0.65111151,67872.0,67871.0,0.000828]
[1729251406557,0.63611151,67872.0,67871.0,0.000828]
[1729251408134,0.65311151,67872.0,67871.0,0.000828]
[1729251408717,0.65011151,67872.0,67871.0,0.000828]
[1729251408915,0.66411151,67872.0,67871.0,0.000828]
[1729251409113,0.77710979,67872.0,67871.0,0.000828]
[1729251409538,0.66411151,67872.0,67871.0,0.000828]
[1729251414451,0.49121151,67872.0,67871.0,0.000828]
[1729251415773,0.028,67872.0,67871.0,0.000828]
[1729251416250,0.028,67872.0,67871.0,0.00783733]
[1729251416701,0.014,67872.0,67871.0,0.00783733]
[1729251417161,0.294645,67879.0,67871.0,0.00783733]
[1729251417162,0.147326,67877.0,67871.0,0.00783733]
[1729251417411,0.441967,67879.0,67871.0,0.01064186]
[1729251417636,0.147326,67877.0,67871.0,0.01064186]
[1729251418075,0.004,67872.0,67871.0,0.01064186]
[1729251418521,0.147328,67876.0,67871.0,0.00783733]
[1729251418751,0.001,67879.0,67871.0,0.00983733]
[1729251418970,0.001656,67880.0,67871.0,0.01064186]
[1729251419432,0.147327,67876.0,67871.0,0.01064186]
[1729251419654,0.001656,67880.0,67871.0,0.01164186]
[1729251419876,0.294641,67879.0,67871.0,0.01164186]
[1729251420112,0.147325,67877.0,67871.0,0.01164186]
[1729251420570,0.294641,67879.0,67871.0,0.01164186]
[1729251420571,0.001,67872.0,67871.0,0.01364186]
[1729251420840,0.001656,67880.0,67871.0,0.01178386]
[1729251421071,0.001,67879.0,67871.0,0.01364186]
[1729251421293,0.147326,67877.0,67874.0,0.03]
[1729251421726,0.148326,67877.0,67875.0,0.01045986]
[1729251421950,0.147326,67877.0,67875.0,0.01045986]
[1729251422182,0.31424336,67876.0,67875.0,0.01045986]
[1729251422408,0.147336,67872.0,67871.0,0.002828]
[1729251422636,0.147336,67872.0,67871.0,0.22358505]
[1729251422861,0.147336,67872.0,67871.0,0.002828]
[1729251423793,0.147336,67872.0,67871.0,0.000828]
[1729251424043,0.16791636,67876.0,67871.0,0.000828]
[1729251424264,0.001,67876.0,67871.0,0.000828]
[1729251424491,0.147331,67875.0,67871.0,0.000828]
[1729251424720,0.001,67872.0,67871.0,0.002828]
[1729251424946,0.147331,67875.0,67871.0,0.000828]
[1729251425172,0.147326,67877.0,67871.0,0.00853746]
[1729251425400,0.16857236,67880.0,67871.0,0.00853746]
[1729251425626,0.147326,67877.0,67871.0,0.00853746]
[1729251425867,0.001,67876.0,67871.0,0.01053746]
[1729251427427,0.147326,67877.0,67871.0,0.00853746]
[1729251427619,0.148326,67877.0,67871.0,0.01053746]
[1729251427844,0.148326,67877.0,67871.0,0.00853746]
[1729251427845,0.147326,67877.0,67871.0,0.00853746]
[1729251428280,0.001,67876.0,67871.0,0.01053746]
[1729251428553,0.001,67876.0,67871.0,0.00853746]
[1729251428775,0.001,67876.0,67871.0,0.01053746]
[1729251429127,0.147326,67877.0,67871.0,0.00853746]
[1729251429577,0.147324,67878.0,67871.0,0.00853746]
[1729251430145,0.001656,67880.0,67871.0,0.01148409]
[1729251430374,0.001,67876.0,67873.0,0.225432]
[1729251430588,0.001656,67880.0,67873.0,0.0781]
[1729251430811,0.001656,67880.0,67874.0,0.00769644]
[1729251431089,0.001,67878.0,67874.0,0.00769644]
[1729251431255,0.001656,67880.0,67874.0,0.00769644]
[1729251431747,0.001656,67880.0,67871.0,0.22075705]
[1729251431970,0.001656,67880.0,67874.0,0.00577233]
[1729251432193,0.001656,67880.0,67873.0,0.294666]
[1729251432432,0.001656,67880.0,67874.0,0.00777233]
[1729251433996,0.001656,67880.0,67874.0,0.01071863]
[1729251434203,0.001656,67880.0,67874.0,0.00871863]
[1729251434672,0.002656,67880.0,67874.0,0.00871863]
[1729251434872,0.001656,67880.0,67874.0,0.00871863]
[1729251436249,0.001656,67880.0,67874.0,0.01259961]
[1729251437294,0.147321,67879.0,67874.0,0.00965331]
[1729251437501,0.001656,67880.0,67874.0,0.00965331]
[1729251437713,0.14732,67879.0,67874.0,0.00965331]
[1729251437921,0.147324,67878.0,67874.0,0.00965331]
[1729251438346,0.147325,67877.0,67874.0,0.00965331]
[1729251439228,0.40957435,67879.0,67874.0,0.00965331]
[1729251439435,0.147328,67876.0,67874.0,0.00965331]
[1729251441123,0.147329,67875.0,67874.0,0.00965331]
[1729251441407,0.147336,67872.0,67871.0,0.000828]
[1729251441648,0.4574007,67872.0,67871.0,0.000828]
[1729251442110,0.34246835,67872.0,67871.0,0.000828]
[1729251443032,0.80877979,67872.0,67871.0,0.000828]
[1729251443948,0.73882996,67872.0,67871.0,0.000828]
[1729251444179,0.74382996,67872.0,67871.0,0.000828]
[1729251444836,0.63661002,67872.0,67871.0,0.000828]
[1729251445267,0.65761002,67872.0,67871.0,0.000828]
[1729251452117,0.65765002,67872.0,67871.0,0.000828]
[1729251463015,0.65930602,67872.0,67871.0,0.000828]
[1729251465970,0.6073869,67872.0,67871.0,0.000828]
[1729251468485,0.72238265,67872.0,67871.0,0.000828]
[1729251469368,0.6073869,67872.0,67871.0,0.000828]
[1729251469590,0.72238265,67872.0,67871.0,0.000828]
[1729251472341,0.72213219,67872.0,67871.0,0.000828]
[1729251475462,0.72137148,67872.0,67871.0,0.000828]
[1729251477559,0.34242083,67872.0,67871.0,0.000828]
[1729251477797,0.28401658,67872.0,67871.0,0.000828]
[1729251484101,0.589378,67868.0,67865.0,0.22075705]
[1729251484352,0.147349,67866.0,67865.0,0.22075705]
[1729251484566,0.294698,67866.0,67865.0,0.00971079]
[1729251484811,0.442047,67866.0,67865.0,0.00971079]
[1729251486184,0.445047,67866.0,67865.0,0.00971079]
[1729251486674,0.442047,67866.0,67865.0,0.00971079]
[1729251486905,0.445047,67866.0,67865.0,0.00971079]
[1729251487144,0.147357,67863.0,67859.0,0.00294696]
[1729251487381,0.147359,67862.0,67860.0,0.00971045]
[1729251487598,0.299698,67866.0,67861.0,0.00971045]
[1729251487853,0.299698,67866.0,67858.0,0.22075705]
[1729251487854,0.294702,67865.0,67862.0,0.00971045]
[1729251488076,0.147355,67863.0,67862.0,0.01006576]
[1729251488302,0.147355,67863.0,67862.0,0.00971002]
[1729251488976,0.147355,67863.0,67862.0,0.01977578]
[1729251490545,0.001696,67872.0,67863.0,0.0905]
[1729251490789,0.147341,67870.0,67864.0,0.0126567]
[1729251491021,0.001696,67872.0,67864.0,0.0126567]
[1729251491022,0.147339,67871.0,67864.0,0.0126567]
[1729251491253,0.14734,67870.0,67865.0,0.01577115]
[1729251491478,0.147338,67871.0,67866.0,0.00970974]
[1729251491688,0.001696,67872.0,67867.0,0.00970974]
[1729251491911,0.001,67871.0,67868.0,0.00970974]
[1729251492139,0.001696,67872.0,67869.0,0.00970974]
[1729251492357,0.001696,67872.0,67870.0,0.00970974]
[1729251492582,0.001696,67872.0,67871.0,0.00970974]
[1729251492983,0.002696,67872.0,67871.0,0.0136183]
[1729251493432,0.001696,67872.0,67871.0,0.0136183]
[1729251494402,0.001696,67872.0,67871.0,0.10192882]
[1729251494630,0.001696,67872.0,67871.0,0.10796417]
[1729251494879,0.001696,67872.0,67871.0,0.09825443]
[1729251495129,0.001696,67872.0,67871.0,0.10795212]
[1729251495368,0.001696,67872.0,67871.0,0.0196416]
[1729251496379,0.001696,67872.0,67871.0,0.0206416]
[1729251497611,0.149032,67872.0,67871.0,0.08684485]
[1729251498100,0.001696,67872.0,67871.0,0.0206416]
[1729251498332,0.001696,67872.0,67871.0,0.08683798]
[1729251499017,0.001696,67872.0,67871.0,0.08766598]
[1729251499557,0.001696,67872.0,67871.0,0.0214696]
[1729251499558,0.149032,67872.0,67871.0,0.0214696]
[1729251499791,0.64847868,67872.0,67871.0,0.01177191]
[1729251500286,0.64847868,67872.0,67871.0,0.001828]
[1729251500543,0.5533235,67872.0,67871.0,0.000828]
[1729251501231,0.70728265,67872.0,67871.0,0.000828]
[1729251501674,0.70228265,67872.0,67871.0,0.000828]
[1729251501911,0.70928265,67872.0,67871.0,0.000828]
[1729251502791,0.88202903,67872.0,67871.0,0.000828]
[1729251503009,0.71428265,67872.0,67871.0,0.000828]
[1729251503262,0.72428265,67872.0,67871.0,0.000828]
[1729251504154,0.73828265,67872.0,67871.0,0.000828]
[1729251504549,0.73628265,67872.0,67871.0,0.000828]
[1729251504746,0.86904332,67872.0,67871.0,0.000828]
[1729251504988,0.87104332,67872.0,67871.0,0.000828]
[1729251505200,0.86604332,67872.0,67871.0,0.000828]
[1729251505411,0.86404332,67872.0,67871.0,0.00057911]
[1729251505878,0.87804332,67872.0,67871.0,0.00057911]
[1729251506293,0.90802903,67872.0,67871.0,0.00057911]
[1729251506459,0.8602784,67872.0,67871.0,0.00057911]
[1729251506657,0.318268,67857.0,67856.0,0.22075705]
[1729251506825,0.43326375,67857.0,67856.0,0.23090406]
[1729251507239,0.147383,67850.0,67849.0,0.22075705]
[1729251507461,0.26237875,67850.0,67849.0,0.22486797]
[1729251507655,0.147383,67850.0,67849.0,0.00411092]
[1729251507921,0.147386,67849.0,67848.0,0.02023677]
[1729251508356,0.147386,67849.0,67848.0,0.02435689]
[1729251509376,0.147386,67849.0,67848.0,0.01821689]
[1729251510422,0.148386,67849.0,67848.0,0.01921689]
[1729251510830,0.148386,67849.0,67848.0,0.02004489]
[1729251511462,0.149386,67849.0,67848.0,0.02004489]
[1729251511625,0.149386,67849.0,67848.0,0.02604489]
[1729251515387,0.149386,67849.0,67848.0,0.025796]
[1729251515810,0.002,67849.0,67848.0,0.025796]
[1729251516035,0.002,67849.0,67848.0,0.173184]
[1729251516260,0.002,67849.0,67848.0,0.25198574]
[1729251517104,0.002,67849.0,67848.0,0.10459774]
[1729251517556,0.002,67849.0,67848.0,0.25198574]
[1729251517771,0.002,67849.0,67848.0,0.45181644]
[1729251519224,0.002,67849.0,67848.0,0.5399655]
[1729251520220,0.002,67849.0,67848.0,0.42496975]
[1729251521959,0.002,67849.0,67848.0,0.431105]
[1729251522116,0.002,67849.0,67848.0,0.4311038]
[1729251522880,0.003656,67849.0,67848.0,0.4311038]
[1729251523524,0.003656,67849.0,67848.0,0.34295474]
[1729251523725,0.003656,67849.0,67848.0,0.43110158]
[1729251525424,0.003656,67849.0,67848.0,0.34295474]
[1729251526017,0.003656,67849.0,67848.0,0.3332784]
[1729251526235,0.003656,67849.0,67848.0,0.34296249]
[1729251531365,0.003656,67849.0,67848.0,0.4311116]
[1729251531795,0.003656,67849.0,67848.0,0.43112938]
[1729251532211,0.003656,67849.0,67848.0,0.34298027]
[1729251533060,0.003656,67849.0,67848.0,0.43113037]
[1729251533472,0.003656,67849.0,67848.0,0.34298027]
[1729251534155,0.003656,67849.0,67848.0,0.3332784]
[1729251534370,0.003656,67849.0,67848.0,0.34298062]
[1729251535226,0.003656,67849.0,67848.0,0.35850439]
[1729251535850,0.003656,67849.0,67848.0,0.44665553]
[1729251537124,0.003656,67849.0,67848.0,0.46869192]
[1729251538214,0.003656,67849.0,67848.0,0.46869254]
[1729251539300,0.003656,67849.0,67848.0,0.35850501]
[1729251541629,0.003656,67849.0,67848.0,0.3332784]
[1729251543138,0.003656,67849.0,67848.0,0.3429861]
[1729251543596,0.003656,67849.0,67848.0,0.35851891]
[1729251543811,0.003656,67849.0,67848.0,0.3429861]
[1729251544020,0.003656,67849.0,67848.0,0.3332784]
[1729251544501,0.003656,67849.0,67848.0,0.1808904]
[1729251545140,0.003656,67849.0,67848.0,0.03193125]
[1729251552214,0.003656,67849.0,67848.0,0.04164562]
[1729251552423,0.003656,67849.0,67848.0,0.18903362]
[1729251552636,0.003656,67849.0,67848.0,0.04164562]
[1729251553051,0.003656,67849.0,67848.0,0.18903362]
[1729251553717,0.003656,67849.0,67848.0,0.46498852]
[1729251553920,0.003656,67849.0,67848.0,0.46298852]
[1729251554768,0.003656,67849.0,67848.0,0.34799277]
[1729251554991,0.003656,67849.0,67848.0,0.34299277]
[1729251555404,0.003656,67849.0,67848.0,0.36352869]
[1729251555626,0.003656,67849.0,67848.0,0.35852869]
[1729251555841,0.003656,67849.0,67848.0,0.36352869]
[1729251556078,0.003656,67849.0,67848.0,0.35852869]
[1729251557093,0.003656,67849.0,67848.0,0.05718154]
[1729251557332,0.19695175,67849.0,67848.0,0.05718154]
[1729251557575,0.34433775,67849.0,67848.0,0.05718154]
[1729251557805,0.081956,67849.0,67848.0,0.05718154]
[1729251558525,0.081956,67849.0,67848.0,0.04164271]
[1729251565848,0.081956,67849.0,67848.0,0.18903071]
[1729251566893,0.081956,67849.0,67848.0,0.32162637]
[1729251567105,0.081956,67849.0,67848.0,0.18903071]
[1729251569958,0.081956,67849.0,67848.0,0.04164271]
[1729251570170,0.081956,67849.0,67848.0,0.18903071]
[1729251571020,0.081956,67849.0,67848.0,0.18902788]
[1729251574668,0.081956,67849.0,67848.0,0.17931925]
[1729251574917,0.081956,67849.0,67848.0,0.18902885]
[1729251575556,0.081956,67849.0,67848.0,0.33716068]
[1729251575557,0.003656,67849.0,67848.0,0.33716068]
[1729251575764,0.003656,67849.0,67848.0,0.20456502]
[1729251577799,0.003656,67849.0,67848.0,0.18226666]
[1729251579094,0.003656,67849.0,67848.0,0.20751245]
[1729251579975,0.003656,67849.0,67848.0,0.19197639]
[1729251580627,0.323542,67849.0,67848.0,0.04164098]
[1729251582160,0.323542,67849.0,67848.0,0.15213849]
[1729251582887,0.323542,67849.0,67848.0,0.14242876]
[1729251583121,0.323542,67849.0,67848.0,0.15213704]
[1729251583329,0.323542,67849.0,67848.0,0.15212958]
[1729251587405,0.323542,67849.0,67848.0,0.04163953]
[1729251589372,0.43853775,67849.0,67848.0,0.13002315]
[1729251589549,0.43853775,67849.0,67848.0,0.11976778]
[1729251589956,0.43853775,67849.0,67848.0,0.03138416]
[1729251591419,0.43853775,67849.0,67848.0,0.09766285]
[1729251591811,0.43853775,67849.0,67848.0,0.10178297]
[1729251592833,0.43853775,67849.0,67848.0,0.10177914]
[1729251593184,0.43853775,67849.0,67848.0,0.10791439]
[1729251594523,0.43853775,67849.0,67848.0,0.04163953]
[1729251594984,0.43853775,67849.0,67848.0,0.03193125]
[1729251595296,0.43853775,67849.0,67848.0,0.04163651]
[1729251595660,0.43853775,67849.0,67848.0,0.04163595]
[1729251595868,0.43853775,67849.0,67848.0,0.10791081]
[1729251596304,0.43853775,67849.0,67848.0,0.03193125]
[1729251596737,0.323542,67849.0,67848.0,0.03193125]
[1729251599326,0.323542,67849.0,67848.0,0.07610008]
[1729251599907,0.323542,67849.0,67848.0,0.03193125]
[1729251600309,0.323542,67849.0,67848.0,0.04163512]
[1729251600929,0.176156,67849.0,67848.0,0.10789596]
[1729251601129,0.085656,67849.0,67848.0,0.04163512]
[1729251601493,0.085656,67849.0,67848.0,0.04163543]
[1729251601717,0.233042,67849.0,67848.0,0.04163543]
[1729251601919,0.233042,67849.0,67848.0,0.03138006]
[1729251602045,0.085656,67849.0,67848.0,0.04163543]
[1729251602242,0.233042,67849.0,67848.0,0.04163543]
[1729251602579,0.085656,67849.0,67848.0,0.15207016]
[1729251602811,0.085656,67849.0,67848.0,0.1520767]
[1729251603064,0.085656,67849.0,67848.0,0.05716323]
[1729251603690,0.233042,67849.0,67848.0,0.05716323]
[1729251604158,0.085656,67849.0,67848.0,0.05716323]
[1729251604849,0.233042,67849.0,67848.0,0.05716323]
[1729251605527,0.233042,67849.0,67848.0,0.16760856]
[1729251605727,0.233042,67849.0,67848.0,0.05716323]
[1729251606356,0.085656,67849.0,67848.0,0.05716323]
[1729251606827,0.233042,67849.0,67848.0,0.04163543]
[1729251607050,0.003656,67849.0,67848.0,0.20455356]
[1729251607277,0.003656,67849.0,67848.0,0.20750084]
[1729251609163,0.003656,67849.0,67848.0,0.18226653]
[1729251609361,0.003656,67849.0,67848.0,0.20749862]
[1729251610361,0.003656,67849.0,67848.0,0.20149862]
[1729251610816,0.003656,67849.0,67848.0,0.19855134]
[1729251611438,0.003656,67849.0,67848.0,0.35045786]
[1729251611649,0.003656,67849.0,67848.0,0.34751049]
[1729251612074,0.003656,67849.0,67848.0,0.05116334]
[1729251612292,0.34153775,67849.0,67848.0,0.16156704]
[1729251612494,0.34153775,67849.0,67848.0,0.12395981]
[1729251612701,0.34153775,67849.0,67848.0,0.03563571]
[1729251612932,0.34153775,67849.0,67848.0,0.02538034]
[1729251613169,0.078156,67849.0,67848.0,0.01567588]
[1729251613380,0.078156,67849.0,67848.0,0.10399854]
[1729251613586,0.078156,67849.0,67848.0,0.11781921]
[1729251613793,0.077156,67849.0,67848.0,0.11681921]
[1729251613994,0.078156,67849.0,67848.0,0.02849655]
[1729251614846,0.078156,67849.0,67848.0,0.17588455]
[1729251615093,0.078156,67849.0,67848.0,0.04401773]
[1729251615329,0.077156,67849.0,67848.0,0.04401773]
[1729251615605,0.079156,67849.0,67848.0,0.04401773]
[1729251616557,0.079156,67849.0,67848.0,0.14503584]
[1729251617006,0.079156,67849.0,67848.0,0.1450356]
[1729251618482,0.079156,67849.0,67848.0,0.03463156]
[1729251618696,0.173456,67849.0,67848.0,0.03463156]
[1729251618907,0.173456,67849.0,67848.0,0.12295943]
[1729251619338,0.173456,67849.0,67848.0,0.1229584]
[1729251619777,0.320842,67849.0,67848.0,0.1229584]
[1729251619988,0.320842,67849.0,67848.0,0.12296205]
[1729251620890,0.320842,67849.0,67848.0,0.12296251]
[1729251622837,0.173456,67849.0,67848.0,0.12296251]
[1729251623985,0.320842,67849.0,67848.0,0.12296251]
[1729251624406,0.320842,67849.0,67848.0,0.12296968]
[1729251624875,0.320842,67849.0,67848.0,0.12297109]
[1729251625823,0.173456,67849.0,67848.0,0.12297109]
[1729251626059,0.173456,67849.0,67848.0,0.03463343]
[1729251630634,0.320842,67849.0,67848.0,0.1229828]
[1729251630842,0.320842,67849.0,67848.0,0.03463343]
[1729251631049,0.320842,67849.0,67848.0,0.02437806]
[1729251631520,0.320842,67849.0,67848.0,0.09064144]
[1729251631934,0.320842,67849.0,67848.0,0.10089681]
[1729251632146,0.320842,67849.0,67848.0,0.03463343]
[1729251633040,0.43583775,67849.0,67848.0,0.03463343]
[1729251634380,0.43583775,67849.0,67848.0,0.02493125]
[1729251634597,0.43583775,67849.0,67848.0,0.01467588]
[1729251634848,0.70479265,67849.0,67848.0,0.02493125]
[1729251635054,0.70479265,67849.0,67845.0,0.000828]
[1729251635055,0.327492,67846.0,67845.0,0.000828]
[1729251635270,0.5914469,67846.0,67845.0,0.000828]
[1729251635894,0.64348848,67846.0,67845.0,0.000828]
[1729251636378,0.64948848,67846.0,67845.0,0.000828]
[1729251636584,0.64348848,67846.0,67845.0,0.000828]
[1729251637050,0.65348848,67846.0,67845.0,0.000828]
[1729251638125,0.66248848,67846.0,67845.0,0.000828]
[1729251638357,0.81144763,67846.0,67845.0,0.000828]
[1729251638575,0.66248848,67846.0,67845.0,0.000828]
[1729251639197,0.65248848,67846.0,67845.0,0.000828]
[1729251639427,0.66548848,67846.0,67845.0,0.000828]
[1729251639931,0.65648848,67846.0,67845.0,0.000828]